bitfinex-derivatives/quotes_ETHF0:USTF0_20250220
["timestamp","ask_amount","ask_price","bid_price","bid_amount"]
[1740020534105,1.29407,2743.8,2743.6,0.00546448]
[1740020534509,0.5651,2743.8,2743.6,0.00546448]
[1740020534810,3.16297,2743.9,2743.7,0.72899]
[1740020534811,2.434,2743.9,2743.7,0.72899]
[1740020535010,2.434,2743.9,2743.6,3.21326448]
[1740020535312,0.72893,2744.0,2743.6,3.21326448]
[1740020535806,0.00546448,2744.1,2743.6,3.21326448]
[1740020536108,0.729,2743.7,2743.6,3.21326448]
[1740020536606,0.729,2743.7,2743.6,0.00546448]
[1740020537008,0.72898,2743.8,2743.6,0.00546448]
[1740020537308,2.443,2744.0,2743.6,0.00546448]
[1740020537508,0.729,2743.7,2743.6,0.00546448]
[1740020538202,2.443,2744.0,2743.6,0.00546448]
[1740020538497,0.729,2743.7,2743.6,0.00546448]
[1740020538901,0.729,2743.7,2743.3,0.26053171]
[1740020539111,0.729,2743.7,2743.3,0.98963171]
[1740020539503,2.443,2744.0,2743.3,0.26053171]
[1740020539709,2.443,2744.0,2743.5,3.2078]
[1740020539908,0.00546448,2744.1,2743.5,3.2078]
[1740020540109,0.00546448,2744.1,2743.6,0.729]
[1740020540110,2.447,2744.0,2743.6,0.729]
[1740020540411,0.72895,2743.9,2743.5,3.93684]
[1740020540610,2.447,2744.0,2743.5,3.2078]
[1740020540810,3.17593,2744.0,2743.6,0.72901]
[1740020541311,0.72895,2743.9,2743.6,0.72901]
[1740020541513,3.17593,2744.0,2743.6,0.72901]
[1740020541715,3.17593,2744.0,2743.7,0.72899]
[1740020541900,3.17593,2744.0,2743.5,3.2078]
[1740020542106,0.72895,2743.9,2743.5,3.93683]
[1740020543014,0.72895,2743.9,2743.6,0.72901]
[1740020543415,0.72895,2743.9,2743.5,3.93683]
[1740020543615,3.17593,2744.0,2743.5,3.2078]
[1740020543814,3.17593,2744.0,2743.7,0.72899]
[1740020544014,3.17593,2744.0,2743.6,0.72901]
[1740020544211,2.447,2744.0,2743.6,0.72901]
[1740020544407,0.72894,2743.9,2743.6,0.72901]
[1740020544612,0.72894,2743.9,2743.5,3.93683]
[1740020544910,2.447,2744.0,2743.6,0.0699]
[1740020545213,0.729,2743.7,2743.6,0.0699]
[1740020545809,0.72913,2743.2,2743.0,1.1986]
[1740020546017,0.72913,2743.2,2742.7,4.48995]
[1740020546311,0.5445,2743.1,2742.8,0.72922]
[1740020546910,0.5445,2743.1,2742.9,0.7292]
[1740020548018,3.17812,2743.3,2743.2,0.72913]
[1740020548019,2.449,2743.3,2743.2,0.72913]
[1740020548217,2.449,2743.3,2743.1,0.72914]
[1740020548714,2.449,2743.3,2743.2,0.72913]
[1740020548917,5.35664,2743.6,2743.0,3.2078]
[1740020549213,4.0768,2743.6,2743.4,0.72906]
[1740020549611,4.0768,2743.6,2743.4,0.5437]
[1740020549811,4.80583,2743.6,2743.4,0.5437]
[1740020550008,4.0768,2743.6,2743.3,3.2078]
[1740020550218,0.72906,2743.5,2743.3,3.2078]
[1740020550517,0.72906,2743.5,2743.2,0.72912]
[1740020550718,0.72906,2743.5,2743.1,1.27373]
[1740020551019,0.72906,2743.5,2743.2,0.72913]
[1740020551516,3.17899,2743.8,2743.3,3.2078]
[1740020551718,1.81399,2743.8,2743.5,0.72905]
[1740020551915,4.26499,2743.8,2743.4,0.5712]
[1740020552121,3.536,2743.8,2743.5,0.72903]
[1740020552309,3.536,2743.8,2743.5,0.72905]
[1740020552508,3.536,2743.8,2743.3,3.2078]
[1740020552509,0.72901,2743.7,2743.3,3.93688]
[1740020553017,3.536,2743.8,2743.3,3.2078]
[1740020553018,0.72906,2743.5,2743.3,3.2078]
[1740020553321,3.536,2743.8,2743.3,3.2078]
[1740020553322,0.5876,2743.4,2743.3,3.2078]
[1740020555911,0.5876,2743.4,2743.2,0.72911]
[1740020556111,0.5876,2743.4,2743.1,1.1158]
[1740020556320,1.085,2743.8,2743.1,1.1158]
[1740020556517,2.452,2743.7,2743.6,0.72902]
[1740020556713,1.085,2743.8,2743.5,0.72903]
[1740020556714,1.81397,2743.8,2743.5,0.72903]
[1740020556914,0.729,2743.7,2743.1,1.1158]
[1740020557214,1.81398,2743.8,2743.4,0.72906]
[1740020557521,1.085,2743.8,2743.4,3.2078]
[1740020557714,1.085,2743.8,2743.7,0.729]
[1740020558523,2.452,2743.9,2743.8,0.72897]
[1740020559419,2.452,2743.9,2743.7,3.2078]
[1740020559922,2.452,2743.9,2743.8,0.72897]
[1740020560917,0.00546448,2744.1,2743.7,3.2078]
[1740020561121,0.00546448,2744.1,2744.0,0.72892]
[1740020561321,0.00546448,2744.1,2744.0,3.93672]
[1740020569020,3.2078,2744.7,2744.0,3.2078]
[1740020569224,0.5748,2744.8,2744.6,0.72876]
[1740020569820,0.5748,2744.8,2744.6,3.2078]
[1740020570026,0.5748,2744.8,2744.7,0.72873]
[1740020570827,0.5748,2744.8,2744.7,1.63953]
[1740020571425,0.00546448,2745.0,2744.7,0.9108]
[1740020571624,0.00546448,2745.0,2744.9,0.72868]
[1740020573532,0.00546448,2745.0,2744.9,1.02008]
[1740020574626,0.00546448,2745.0,2744.9,4.22788]
[1740020580035,0.00546448,2745.0,2744.9,0.2914]
[1740020580426,0.00546448,2745.0,2744.9,1.02008]
[1740020581338,0.00546448,2745.0,2744.9,0.2914]
[1740020582233,0.00546448,2745.0,2744.9,1.02008]
[1740020582830,0.00546448,2745.0,2744.9,0.2914]
[1740020583436,0.00546448,2745.0,2744.9,1.02008]
[1740020585530,0.5496,2745.6,2745.5,0.72851]
[1740020586235,1.1133,2745.7,2745.5,0.72851]
[1740020586236,1.1133,2745.7,2745.5,3.2078]
[1740020586433,1.0853,2746.1,2745.5,3.2078]
[1740020586736,0.00546448,2745.9,2745.8,0.72844]
[1740020588335,0.00546448,2745.9,2745.6,1.1406]
[1740020588638,0.00546448,2745.9,2745.8,0.72844]
[1740020588826,0.00546448,2745.9,2745.7,0.72845]
[1740020589026,0.00546448,2745.9,2745.6,1.1406]
[1740020589027,0.00546448,2745.9,2745.8,0.72844]
[1740020589229,0.00546448,2745.9,2745.8,3.93624]
[1740020590539,0.00546448,2745.9,2745.8,3.2078]
[1740020590736,0.00546448,2745.9,2745.8,3.93624]
[1740020591331,0.00546448,2745.9,2745.8,3.2078]
[1740020591633,0.00546448,2745.9,2745.8,3.93624]
[1740020592037,0.00546448,2745.9,2745.8,0.72844]
[1740020593736,0.00546448,2745.9,2745.6,1.1406]
[1740020593936,0.00546448,2745.9,2745.8,0.72844]
[1740020594338,0.00546448,2745.9,2745.8,3.93624]
[1740020596739,3.2078,2746.5,2746.4,0.72828]
[1740020597540,3.2078,2746.5,2746.2,0.5764]
[1740020597738,1.1609,2746.4,2746.1,3.2078]
[1740020597941,1.7417,2746.4,2746.2,0.72832]
[1740020599044,1.7417,2746.4,2746.1,3.21326448]
[1740020599244,1.7417,2746.4,2746.2,0.72832]
[1740020599742,1.1609,2746.4,2746.1,3.21326448]
[1740020599943,0.00546448,2746.6,2746.5,0.72825]
[1740020601440,0.00546448,2746.6,2746.3,0.5354]
[1740020601844,1.11036448,2746.6,2746.3,0.5354]
[1740020602145,0.72827,2746.5,2746.1,3.21326448]
[1740020602334,0.72828,2746.4,2746.1,3.21326448]
[1740020602538,7.29096448,2746.6,2746.1,3.21326448]
[1740020602738,0.72833,2746.2,2746.1,3.21326448]
[1740020602936,3.15933,2746.2,2746.1,0.00546448]
[1740020603339,3.16733,2746.2,2746.1,0.00546448]
[1740020605445,11.399,2746.2,2745.6,3.2078]
[1740020605648,0.72846,2745.7,2745.6,3.2078]
[1740020606245,0.72846,2745.8,2745.6,4.4096]
[1740020606442,0.72843,2745.9,2745.6,4.4096]
[1740020606645,3.16643,2745.9,2745.6,4.4096]
[1740020606845,2.438,2745.9,2745.6,5.13808]
[1740020607047,1.1193,2746.1,2745.6,4.4096]
[1740020607249,1.1193,2746.1,2745.7,0.5512]
[1740020607547,1.1193,2746.1,2745.9,0.7284]
[1740020607750,1.1193,2746.1,2745.7,0.5512]
[1740020608049,1.1193,2746.1,2745.8,0.72842]
[1740020608250,1.1193,2746.1,2745.9,0.72841]
[1740020608449,1.1193,2746.1,2745.6,4.4096]
[1740020608450,0.7284,2746.0,2745.6,4.4096]
[1740020608647,0.72843,2745.9,2745.6,4.4096]
[1740020609249,0.72845,2745.8,2745.6,4.4096]
[1740020609550,0.72842,2745.9,2745.6,4.4096]
[1740020609750,0.5725,2746.0,2745.6,5.13808]
[1740020610145,0.5725,2746.0,2745.6,4.4096]
[1740020610344,0.5725,2746.0,2745.6,5.13809]
[1740020610345,0.72842,2745.9,2745.6,5.13809]
[1740020610543,0.5725,2746.0,2745.6,4.4096]
[1740020610850,0.72846,2745.7,2745.6,4.4096]
[1740020611556,0.72845,2745.8,2745.6,4.4096]
[1740020612247,3.0115,2746.0,2745.6,4.4096]
[1740020612448,0.72845,2745.8,2745.6,4.4096]
[1740020613149,0.72846,2745.7,2745.6,4.4096]
[1740020615347,0.72846,2745.7,2745.6,1.2018]
[1740020620569,6.2193,2746.0,2745.6,1.2018]
[1740020620772,2.43,2745.9,2745.6,1.2018]
[1740020620968,0.72846,2745.7,2745.6,1.2018]
[1740020621168,2.43,2745.9,2745.6,1.2018]
[1740020621475,0.72846,2745.7,2745.6,1.2018]
[1740020621665,0.72846,2745.8,2745.6,1.2018]
[1740020621868,0.72846,2745.7,2745.6,1.2018]
[1740020622269,2.429,2745.9,2745.6,1.2018]
[1740020622471,3.7803,2746.0,2745.6,1.2018]
[1740020622771,3.7803,2746.0,2745.8,0.72843]
[1740020623169,0.5725,2746.0,2745.7,1.85145]
[1740020623473,1.3009,2746.0,2745.7,1.85145]
[1740020623673,0.5725,2746.0,2745.9,0.72841]
[1740020623872,0.5725,2746.0,2745.8,3.93622]
[1740020624065,1.82047,2746.8,2745.8,3.93622]
[1740020624066,3.94150448,2746.6,2746.2,0.72833]
[1740020624270,1.1073,2746.5,2746.2,3.93612]
[1740020624671,1.83556,2746.5,2746.2,3.2078]
[1740020624874,1.1073,2746.5,2746.2,3.2078]
[1740020625275,1.1073,2746.5,2746.3,0.7283]
[1740020625474,1.1073,2746.5,2746.3,0.5691]
[1740020625778,1.1073,2746.5,2746.3,1.2974]
[1740020625965,0.00546448,2746.6,2746.3,1.1358]
[1740020626171,0.00546448,2746.6,2746.4,0.72827]
[1740020626577,0.00546448,2746.6,2746.5,0.72825]
[1740020626777,0.00546448,2746.6,2746.3,1.6679]
[1740020627178,0.00546448,2746.6,2746.3,2.39619]
[1740020627480,0.00546448,2746.6,2746.4,0.72827]
[1740020628167,0.00546448,2746.6,2746.5,0.72825]
[1740020628478,0.00546448,2746.6,2746.5,3.93605]
[1740020628876,6.36385,2747.3,2746.5,3.2078]
[1740020629083,6.36385,2747.3,2746.9,0.72813]
[1740020629269,2.428,2747.3,2747.0,1.31311]
[1740020629476,0.72802,2747.4,2747.0,0.585]
[1740020629671,0.72799,2747.6,2747.1,0.72807]
[1740020629876,3.15599,2747.5,2747.1,0.72807]
[1740020630071,0.00546448,2747.6,2747.1,0.00546448]
[1740020630385,0.00546448,2747.6,2747.5,0.72799]
[1740020630576,0.00546448,2747.6,2747.5,3.93579]
[1740020630774,0.5462,2748.1,2747.5,3.2078]
[1740020631274,0.5462,2748.1,2747.7,0.72791]
[1740020631482,0.5462,2748.1,2747.8,0.7279]
[1740020631875,0.5462,2748.1,2747.6,1.82456]
[1740020632182,1.27403,2748.1,2747.6,1.82456]
[1740020632480,1.27403,2748.1,2747.6,1.0966]
[1740020632481,0.5462,2748.1,2747.6,1.0966]
[1740020632779,1.27404,2748.1,2747.6,1.82455]
[1740020633276,0.72786,2748.0,2747.6,1.0966]
[1740020633577,0.5462,2748.1,2747.6,1.0966]
[1740020633882,1.27404,2748.1,2747.7,0.72793]
[1740020634085,0.5462,2748.1,2747.7,0.72793]
[1740020634382,1.27404,2748.1,2747.7,0.72793]
[1740020635180,1.27404,2748.1,2748.0,3.0]
[1740020640687,4.99430448,2748.3,2747.6,0.72796]
[1740020640985,6.81375448,2748.3,2747.4,4.3692]
[1740020641182,6.81375448,2748.3,2747.4,5.0972]
[1740020641382,0.72792,2747.8,2747.4,4.3692]
[1740020641584,0.72793,2747.8,2747.4,4.3692]
[1740020641784,0.72793,2747.8,2747.4,5.0972]
[1740020642182,0.00546448,2747.9,2747.4,4.3692]
[1740020642377,0.72798,2747.6,2747.4,4.3692]
[1740020642578,2.43246448,2747.9,2747.4,4.3692]
[1740020642782,0.72799,2747.5,2747.4,4.3692]
[1740020643385,0.72799,2747.5,2747.4,0.5883]
[1740020643579,2.43246448,2747.9,2747.1,3.21326448]
[1740020643780,0.72807,2747.2,2747.1,0.00546448]
[1740020644285,0.72806,2747.3,2747.1,0.00546448]
[1740020644487,2.427,2747.4,2747.1,0.00546448]
[1740020644689,0.72807,2747.3,2747.1,0.00546448]
[1740020644988,2.427,2747.4,2747.1,3.21326448]
[1740020645188,1.81973,2747.8,2747.3,0.72803]
[1740020645488,0.00546448,2747.9,2747.4,3.751]
[1740020645691,0.73336448,2747.9,2747.4,3.751]
[1740020646086,0.73336448,2747.9,2747.5,40.8]
[1740020646485,0.00546448,2747.9,2747.5,40.8]
[1740020646787,0.72796,2747.6,2747.5,40.8]
[1740020646990,0.72795,2747.7,2747.4,3.751]
[1740020647384,0.72797,2747.6,2747.4,3.751]
[1740020647587,0.72799,2747.5,2747.4,0.5432]
[1740020647887,0.72799,2747.5,2747.2,1.29786]
[1740020648089,0.72798,2747.6,2747.3,0.5432]
[1740020648887,0.72794,2747.7,2747.3,1.27123]
[1740020649390,0.5519,2747.8,2747.3,1.27123]
[1740020649590,0.72795,2747.7,2747.3,1.27123]
[1740020649791,0.5519,2747.8,2747.3,0.5432]
[1740020650091,0.72795,2747.7,2747.3,1.27123]
[1740020650488,0.72798,2747.6,2747.3,1.27123]
[1740020650791,3.2078,2748.7,2747.5,1.81998]
[1740020650992,0.5344,2748.6,2748.1,3.2078]
[1740020651187,0.5344,2748.6,2748.2,0.5852]
[1740020651388,0.72774,2748.5,2748.2,0.5852]
[1740020651890,3.2078,2748.7,2748.3,0.72777]
[1740020652094,0.00361958,2748.6,2748.4,0.72775]
[1740020652289,0.00361958,2748.6,2748.4,3.2078]
[1740020652999,0.00361958,2748.6,2748.5,0.72772]
[1740020653895,0.00361958,2748.6,2748.4,4.49684]
[1740020654088,0.00361958,2748.6,2748.4,3.7691]
[1740020654296,0.00361958,2748.6,2748.4,6.2091]
[1740020655290,0.73131958,2748.6,2748.5,0.9095]
[1740020656295,1.29771958,2748.6,2748.5,0.9095]
[1740020656889,1.29771958,2748.6,2748.2,0.291]
[1740020656890,0.72778,2748.3,2748.2,0.291]
[1740020657087,3.16778,2748.3,2748.2,0.291]
[1740020657591,3.16778,2748.3,2747.5,3.7461]
[1740020657592,2.44,2748.3,2747.5,3.7461]
[1740020657796,0.72795,2747.7,2747.5,3.2078]
[1740020657997,2.441,2747.9,2747.5,3.2078]
[1740020658292,2.441,2747.9,2747.6,0.72794]
[1740020658695,3.2078,2748.1,2747.6,0.72794]
[1740020658897,3.93563,2748.1,2747.6,0.72794]
[1740020659099,0.72783,2748.1,2747.7,0.5309]
[1740020659398,5.401,2748.2,2747.8,0.5895]
[1740020659592,0.72786,2748.1,2747.8,0.5895]
[1740020659791,5.401,2748.2,2747.8,0.5895]
[1740020659991,0.72786,2748.0,2747.8,0.5895]
[1740020660601,0.72788,2747.9,2747.8,0.5895]
[1740020660901,8.6088,2748.2,2747.5,3.2078]
[1740020661194,0.72792,2747.8,2747.5,3.2078]
[1740020661398,0.72796,2747.6,2747.5,3.2078]
[1740020661898,0.72795,2747.7,2747.5,3.2078]
[1740020662292,0.72796,2747.6,2747.5,3.2078]
[1740020662694,0.72795,2747.7,2747.5,3.2078]
[1740020662896,0.72796,2747.6,2747.5,3.2078]
[1740020665297,0.72807,2747.2,2747.1,4.55778497]
[1740020667604,3.2078,2747.6,2747.1,4.55778497]
[1740020667804,0.72807,2747.2,2747.1,4.55778497]
[1740020668299,3.93587,2747.2,2747.1,0.00546448]
[1740020668597,0.72817,2746.8,2746.7,1.107]
[1740020668901,2.96,2747.4,2746.7,1.107]
[1740020669105,2.435,2747.3,2746.9,3.2078]
[1740020669307,5.081,2747.5,2746.9,3.2078]
[1740020669308,3.2078,2747.5,2746.9,3.2078]
[1740020669498,3.2078,2747.5,2747.0,1.29871]
[1740020669699,0.72811,2747.1,2746.9,3.21326448]
[1740020669998,0.5704,2747.4,2746.9,3.21326448]
[1740020670197,0.72803,2747.4,2747.0,0.72812]
[1740020670606,0.00546448,2747.5,2747.2,3.2078]
[1740020670806,0.72803,2747.4,2747.3,1.0869]
[1740020671200,0.00546448,2747.5,2747.3,1.0869]
[1740020671400,0.00546448,2747.5,2747.3,1.81492]
[1740020671607,0.00546448,2747.5,2747.4,0.72801]
[1740020672308,0.00546448,2747.5,2747.3,1.0869]
[1740020672503,0.00546448,2747.5,2747.3,1.81493]
[1740020672705,0.00546448,2747.5,2747.3,1.0869]
[1740020672911,0.72801,2747.4,2747.3,1.0869]
[1740020673607,0.00546448,2747.5,2747.3,1.0869]
[1740020674410,0.00546448,2747.5,2747.2,3.2078]
[1740020674611,0.72803,2747.4,2747.2,3.2078]
[1740020675197,0.00546448,2747.5,2747.2,3.2078]
[1740020675408,0.72802,2747.4,2747.2,3.2078]
[1740020675603,0.00546448,2747.5,2747.2,3.2078]
[1740020675804,0.73346448,2747.5,2747.2,3.2078]
[1740020676006,0.00546448,2747.5,2747.2,3.93585]
[1740020676306,0.00546448,2747.5,2747.2,3.2078]
[1740020676612,0.73346448,2747.5,2747.2,3.2078]
[1740020676910,0.00546448,2747.5,2747.2,3.2078]
[1740020677114,0.72803,2747.4,2747.2,3.2078]
[1740020677711,0.00546448,2747.5,2747.2,3.2078]
[1740020678214,0.72804,2747.3,2747.2,3.2078]
[1740020678817,0.00546448,2747.5,2747.2,3.93586]
[1740020679517,0.72804,2747.3,2747.2,3.2078]
[1740020680918,0.00546448,2747.5,2747.2,3.2078]
[1740020681417,0.00546448,2747.5,2747.3,0.5626]
[1740020681922,0.73346448,2747.5,2747.3,0.5626]
[1740020682108,0.00546448,2747.5,2747.3,0.5626]
[1740020682312,0.00546448,2747.5,2747.3,1.29063]
[1740020683222,0.00546448,2747.5,2747.3,0.5626]
[1740020683615,0.00546448,2747.5,2747.3,1.29063]
[1740020683814,3.2078,2748.3,2747.3,8.9896]
[1740020684009,3.2078,2748.3,2747.6,3.2078]
[1740020684211,3.2078,2748.3,2747.7,3.0067]
[1740020684418,3.2078,2748.3,2747.7,43.8067]
[1740020684618,3.2078,2748.7,2748.3,0.72775]
[1740020684819,3.2078,2748.7,2748.4,0.5531]
[1740020685122,0.00361958,2748.8,2748.7,0.72767]
[1740020685321,0.5787,2749.4,2748.7,0.5838]
[1740020685522,0.72753,2749.3,2748.9,3.2078]
[1740020685721,0.72753,2749.3,2749.0,0.5531]
[1740020686118,0.5787,2749.4,2749.0,0.5531]
[1740020686420,1.3062,2749.4,2749.0,0.5531]
[1740020686825,0.72751,2749.3,2749.0,0.5531]
[1740020687026,0.5787,2749.4,2749.0,1.1315]
[1740020687027,0.7275,2749.4,2749.0,1.1315]
[1740020687623,3.2078,2749.6,2749.1,0.72756]
[1740020687921,2.436,2749.7,2749.2,3.2078]
[1740020688321,2.436,2749.7,2749.1,3.93536]
[1740020688727,0.5811,2749.8,2749.1,3.2078]
[1740020688919,0.72745,2749.6,2749.1,3.2078]
[1740020689425,3.2078,2749.9,2749.1,3.2078]
[1740020689617,3.2078,2749.9,2749.4,0.72748]
[1740020690230,3.2078,2749.9,2749.1,4.4064]
[1740020690430,0.72739,2749.8,2749.2,0.72752]
[1740020690619,3.2078,2749.9,2749.1,4.4064]
[1740020690821,0.7274,2749.8,2749.2,0.72751]
[1740020691016,0.7274,2749.8,2749.1,4.4064]
[1740020691017,0.72742,2749.7,2749.1,4.4064]
[1740020691321,0.72748,2749.5,2749.1,4.4064]
[1740020691525,1.1058,2749.6,2749.1,5.13395]
[1740020691828,0.5375,2749.6,2749.2,0.72753]
[1740020692031,0.72737,2749.9,2749.3,0.7275]
[1740020692528,0.7274,2749.8,2749.3,0.7275]
[1740020692727,0.7274,2749.8,2749.4,3.2078]
[1740020692915,0.72741,2749.7,2749.4,3.2078]
[1740020693520,0.72734,2750.0,2749.4,3.2078]
[1740020693729,0.72736,2749.9,2749.4,3.93527]
[1740020693926,0.72738,2749.8,2749.4,3.93527]
[1740020694125,0.72736,2749.9,2749.5,0.72746]
[1740020694321,3.7865,2750.2,2749.4,5.6468]
[1740020694526,0.72744,2749.6,2749.4,5.6468]
[1740020694722,0.72743,2749.6,2749.5,0.00546448]
[1740020695621,0.72742,2749.7,2749.5,0.00546448]
[1740020695833,0.72743,2749.6,2749.5,0.00546448]
[1740020697537,13.46741,2749.6,2748.8,3.2078]
[1740020697739,0.72762,2748.9,2748.8,3.2078]
[1740020697932,0.72759,2749.1,2748.8,3.2078]
[1740020698530,2.442,2749.2,2748.8,3.2078]
[1740020698531,0.72762,2748.9,2748.8,3.2078]
[1740020698732,1.0976,2749.0,2748.7,0.00546448]
[1740020699129,0.72764,2748.8,2748.7,0.00546448]
[1740020699326,3.17064,2748.8,2748.7,0.00546448]
[1740020699638,5.6508,2748.8,2747.9,0.30321574]
[1740020699841,0.72776,2748.4,2747.8,3.93569]
[1740020700133,3.2078,2748.5,2747.8,3.2078]
[1740020700334,0.72788,2747.9,2747.8,3.2078]
[1740020700537,3.2078,2748.2,2747.2,2.444]
[1740020700729,0.5763,2748.1,2747.2,2.444]
[1740020700934,0.72793,2747.8,2747.4,3.21326448]
[1740020701437,3.2078,2747.9,2747.4,3.21326448]
[1740020701737,0.72795,2747.7,2747.4,0.00546448]
[1740020701939,3.2078,2747.9,2747.4,0.00546448]
[1740020702129,2.45746448,2748.0,2747.4,3.21326448]
[1740020702335,2.45646448,2748.0,2747.4,3.94127448]
[1740020702529,2.45646448,2748.0,2747.7,3.2078]
[1740020702833,2.45646448,2748.0,2747.4,0.00546448]
[1740020702834,2.45646448,2748.0,2747.5,0.5431]
[1740020703031,3.18432448,2748.0,2747.5,0.5431]
[1740020703231,0.00546448,2748.0,2747.5,0.5431]
[1740020703433,0.73332448,2748.0,2747.5,1.1015]
[1740020704241,0.00546448,2748.0,2747.5,1.1015]
[1740020704641,0.00546448,2748.0,2747.6,0.72796]
[1740020704843,0.00546448,2748.0,2747.5,1.1015]
[1740020705046,0.00546448,2748.0,2747.6,0.72796]
[1740020705246,0.00546448,2748.0,2747.7,0.72793]
[1740020705539,0.72788,2747.9,2747.5,1.3926]
[1740020705742,0.72796,2747.6,2747.5,0.2911]
[1740020705936,0.72792,2747.8,2747.5,0.2911]
[1740020706543,0.568,2747.9,2747.5,0.2911]
[1740020706740,0.72796,2747.6,2747.5,0.2911]
[1740020706934,3.18096,2747.6,2747.4,0.00546448]
[1740020707137,11.413,2747.6,2746.5,3.7666]
[1740020707447,3.2078,2747.1,2746.5,3.2078]
[1740020707633,3.2078,2747.1,2746.2,3.2078]
[1740020707634,3.032,2747.0,2746.2,3.2078]
[1740020707936,3.5905,2747.0,2746.2,3.2078]
[1740020708144,2.466,2746.9,2746.2,3.2078]
[1740020708448,2.47146448,2746.9,2746.3,0.00546448]
[1740020708641,0.72823,2746.6,2746.3,0.00546448]
[1740020708835,0.72821,2746.7,2746.3,0.00546448]
[1740020709844,0.00546448,2746.9,2746.3,0.00546448]
[1740020710042,0.00546448,2746.9,2746.3,0.73376448]
[1740020710242,0.00546448,2746.9,2746.3,0.00546448]
[1740020710445,0.00546448,2746.9,2746.6,0.72821]
[1740020710645,0.00546448,2746.9,2746.6,3.93601]
[1740020711038,0.00546448,2746.9,2746.8,0.72817]
[1740020711344,3.2078,2747.8,2747.2,0.72805]
[1740020711543,3.2078,2747.8,2747.3,1.1537]
[1740020711845,3.2078,2747.8,2747.3,41.9537]
[1740020712040,3.2078,2747.8,2747.4,0.72801]
[1740020713048,0.00546448,2747.9,2747.6,3.2078]
[1740020713345,0.00546448,2747.9,2747.6,5.6778]
[1740020713645,0.72793,2747.8,2747.6,5.6778]
[1740020713843,0.73335448,2747.9,2747.6,5.6778]
[1740020714348,0.00546448,2747.9,2747.6,5.6778]
[1740020715348,0.73335448,2747.9,2747.6,5.6778]
[1740020715646,0.00546448,2747.9,2747.6,5.6778]
[1740020715945,0.00546448,2747.9,2747.6,6.40575]
[1740020716146,0.00546448,2747.9,2747.6,3.93575]
[1740020716346,0.00546448,2747.9,2747.6,3.2078]
[1740020716546,0.00546448,2747.9,2747.8,0.72791]
[1740020718351,0.00546448,2747.9,2747.7,0.72793]
[1740020718546,0.00546448,2747.9,2747.8,2.467]
[1740020718847,0.00546448,2747.9,2747.7,2.467]
[1740020720854,0.00546448,2747.9,2747.7,3.19492]
[1740020721149,0.00546448,2747.9,2747.6,4.4064]
[1740020721349,0.73334448,2747.9,2747.6,4.4064]
[1740020721552,0.72793,2747.8,2747.6,4.4064]
[1740020721948,0.00546448,2747.9,2747.6,4.4064]
[1740020722151,0.72793,2747.7,2747.6,3.2078]
[1740020722753,0.72798,2747.6,2747.3,1.1537]
[1740020723548,0.72795,2747.7,2747.3,1.1537]
[1740020723853,0.72792,2747.8,2747.4,0.728]
[1740020724248,0.72794,2747.7,2747.3,1.88173]
[1740020725458,0.72794,2747.7,2747.3,1.1537]
[1740020725954,0.00546448,2747.9,2747.3,1.1537]
[1740020726457,0.72796,2747.6,2747.3,1.1537]
[1740020726848,0.72796,2747.6,2747.3,1.88174]
[1740020727255,0.72796,2747.6,2747.3,1.1537]
[1740020727749,0.72796,2747.6,2747.3,1.88173]
[1740020728246,0.72799,2747.5,2747.3,1.1537]
[1740020728454,0.72797,2747.6,2747.3,1.88173]
[1740020728650,0.72797,2747.6,2747.4,3.2078]
[1740020730861,0.00546448,2747.9,2747.4,3.2078]
[1740020731257,0.72797,2747.6,2747.4,3.2078]
[1740020731954,0.72796,2747.7,2747.4,3.9358]
[1740020732256,0.72797,2747.6,2747.4,3.9358]
[1740020733358,0.72796,2747.7,2747.4,3.9358]
[1740020733761,0.72797,2747.6,2747.4,3.2078]
[1740020734162,0.00546448,2747.9,2747.4,3.9358]
[1740020734562,0.72796,2747.6,2747.4,3.9358]
[1740020735260,0.00546448,2747.9,2747.4,3.2078]
[1740020735561,0.72796,2747.6,2747.4,3.2078]
[1740020736157,0.00546448,2747.9,2747.4,3.2078]
[1740020736356,0.67839,2747.5,2747.4,3.2078]
[1740020737165,0.72806,2747.3,2747.1,4.4064]
[1740020737462,0.72806,2747.3,2747.1,3.2078]
[1740020737857,0.72807,2747.2,2747.1,3.2078]
[1740020738058,0.72805,2747.3,2747.1,3.2078]
[1740020738963,0.72806,2747.3,2747.1,3.2078]
[1740020739171,0.72807,2747.2,2747.1,3.2078]
[1740020740254,0.5444,2747.4,2747.1,3.2078]
[1740020740455,0.72807,2747.2,2747.1,3.2078]
[1740020740655,0.72804,2747.3,2747.1,3.2078]
[1740020740864,0.72807,2747.2,2747.1,3.2078]
[1740020741062,0.5444,2747.4,2747.1,3.2078]
[1740020741264,0.72806,2747.3,2747.1,3.2078]
[1740020741458,0.72807,2747.2,2747.1,3.2078]
[1740020741660,0.5767,2747.7,2747.1,3.2078]
[1740020741856,3.2078,2747.8,2747.4,0.72799]
[1740020742051,3.2078,2747.8,2747.5,1.86488]
[1740020742257,0.72796,2747.6,2747.5,1.1369]
[1740020742859,3.2078,2747.8,2747.5,1.1369]
[1740020743062,0.72796,2747.6,2747.5,1.1369]
[1740020743866,3.2078,2747.8,2747.5,1.1369]
[1740020744472,0.72796,2747.6,2747.5,1.1369]
[1740020745263,3.2078,2747.8,2747.5,1.1369]
[1740020745463,3.69336448,2747.9,2747.5,1.86488]
[1740020745670,0.00546448,2747.9,2747.5,1.1369]
[1740020746370,0.73335448,2747.9,2747.5,1.86487]
[1740020746560,0.00546448,2747.9,2747.5,1.1369]